fUSD/lending_fUSD_20260626
["ID","MTS","AMOUNT","RATE_DAILY","PERIOD"]
[426474720,1782434999000,-173.37,0.00010888,2]
[426474721,1782434999000,-150.0,0.00010898,2]
[426474723,1782434999000,-3945.6135392,0.00010898,2]
[426474724,1782434999000,-2680.02121559,0.00010898,2]
[426474722,1782434999000,-152.0,0.00010898,2]
[426474739,1782435031000,-152.0,0.00011136,2]
[426474729,1782435031000,-720.38,0.00010873,2]
[426474732,1782435031000,-150.0,0.0001089,2]
[426474731,1782435031000,-193.0,0.00010886,2]
[426474728,1782435031000,-1474.29,0.00010873,2]
[426474727,1782435031000,-1000.0,0.00010722,2]
[426474733,1782435031000,-250282.90950962,0.00010898,2]
[426474730,1782435031000,-153.0,0.00010873,2]
[426474734,1782435031000,-157442.83765966,0.00010898,2]
[426474735,1782435031000,-18121.04264742,0.00010898,2]
[426474741,1782435031000,-160.0,0.00011289,2]
[426474742,1782435031000,-1474.29,0.00011417,2]
[426474740,1782435031000,-1474.29,0.00011145,2]
[426474736,1782435031000,-5107.77976473,0.000109,2]
[426474737,1782435031000,-978.7588181,0.00010932,2]
[426474738,1782435031000,-193.0,0.00011068,2]
[426474835,1782435032000,-790.97782924,0.00011788,2]
[426474841,1782435032000,-790.97782924,0.00011788,2]
[426474844,1782435032000,-790.97782924,0.00011788,2]
[426474843,1782435032000,-790.97782924,0.00011788,2]
[426474845,1782435032000,-790.97782924,0.00011788,2]
[426474849,1782435032000,-790.97782924,0.00011788,2]
[426474852,1782435032000,-790.97782924,0.00011788,2]
[426474855,1782435032000,-790.97782924,0.00011788,2]
[426474846,1782435032000,-790.97782924,0.00011788,2]
[426474857,1782435032000,-790.97782924,0.00011788,2]
[426474851,1782435032000,-790.97782924,0.00011788,2]
[426474854,1782435032000,-790.97782924,0.00011788,2]
[426474847,1782435032000,-790.97782924,0.00011788,2]
[426474853,1782435032000,-790.97782924,0.00011788,2]
[426474856,1782435032000,-790.97782924,0.00011788,2]
[426474860,1782435032000,-790.97782924,0.00011788,2]
[426474858,1782435032000,-790.97782924,0.00011788,2]
[426474859,1782435032000,-790.97782924,0.00011788,2]
[426474840,1782435032000,-790.97782924,0.00011788,2]
[426474850,1782435032000,-790.97782924,0.00011788,2]
[426474848,1782435032000,-790.97782924,0.00011788,2]
[426474842,1782435032000,-790.97782924,0.00011788,2]
[426474837,1782435032000,-790.97782924,0.00011788,2]
[426474772,1782435032000,-1474.29,0.00011689,2]
[426474769,1782435032000,-150.0,0.00011514,2]
[426474774,1782435032000,-13436.49243109,0.00011689,2]
[426474768,1782435032000,-510.73232332,0.00011514,2]
[426474771,1782435032000,-202.14719862,0.00011514,2]
[426474770,1782435032000,-150.0,0.00011514,2]
[426474773,1782435032000,-13514.01521686,0.00011689,2]
[426474776,1782435032000,-2500.0,0.00011689,2]
[426474775,1782435032000,-448.84642868,0.00011689,2]
[426474766,1782435032000,-500.0,0.00011514,2]
[426474777,1782435032000,-250.0,0.0001169,2]
[426474779,1782435032000,-448.84642868,0.00011749,2]
[426474783,1782435032000,-500.0,0.00011779,2]
[426474784,1782435032000,-500.0,0.00011779,2]
[426474780,1782435032000,-500.0,0.00011753,2]
[426474785,1782435032000,-500.0,0.00011779,2]
[426474782,1782435032000,-500.0,0.00011779,2]
[426474781,1782435032000,-500.0,0.00011779,2]
[426474786,1782435032000,-500.0,0.00011779,2]
[426474787,1782435032000,-500.0,0.00011779,2]
[426474778,1782435032000,-151.0,0.00011733,2]
[426474764,1782435032000,-500.0,0.00011514,2]
[426474767,1782435032000,-500.0,0.00011514,2]
[426474765,1782435032000,-190.01435782,0.00011514,2]
[426474839,1782435032000,-790.97782924,0.00011788,2]
[426474747,1782435032000,-500.0,0.00011514,2]
[426474743,1782435032000,-150.0,0.00011514,2]
[426474744,1782435032000,-150.0,0.00011514,2]
[426474751,1782435032000,-500.0,0.00011514,2]
[426474749,1782435032000,-500.0,0.00011514,2]
[426474750,1782435032000,-500.0,0.00011514,2]
[426474746,1782435032000,-500.0,0.00011514,2]
[426474748,1782435032000,-176.07172224,0.00011514,2]
[426474745,1782435032000,-236.7987138,0.00011514,2]
[426474757,1782435032000,-500.0,0.00011514,2]
[426474753,1782435032000,-500.0,0.00011514,2]
[426474752,1782435032000,-500.0,0.00011514,2]
[426474754,1782435032000,-507.91418824,0.00011514,2]
[426474761,1782435032000,-500.0,0.00011514,2]
[426474759,1782435032000,-194.66398371,0.00011514,2]
[426474763,1782435032000,-500.0,0.00011514,2]
[426474758,1782435032000,-500.0,0.00011514,2]
[426474760,1782435032000,-500.0,0.00011514,2]
[426474756,1782435032000,-500.0,0.00011514,2]
[426474755,1782435032000,-500.0,0.00011514,2]
[426474788,1782435032000,-500.0,0.00011779,2]
[426474797,1782435032000,-500.0,0.00011779,2]
[426474762,1782435032000,-500.0,0.00011514,2]
[426474796,1782435032000,-500.0,0.00011779,2]
[426474816,1782435032000,-790.97782924,0.00011788,2]
[426474815,1782435032000,-790.97782924,0.00011788,2]
[426474813,1782435032000,-790.97782924,0.00011788,2]
[426474817,1782435032000,-790.97782924,0.00011788,2]
[426474819,1782435032000,-790.97782924,0.00011788,2]
[426474822,1782435032000,-790.97782924,0.00011788,2]
[426474824,1782435032000,-790.97782924,0.00011788,2]
[426474825,1782435032000,-790.97782924,0.00011788,2]
[426474826,1782435032000,-790.97782924,0.00011788,2]
[426474821,1782435032000,-790.97782924,0.00011788,2]
[426474838,1782435032000,-790.97782924,0.00011788,2]
[426474823,1782435032000,-790.97782924,0.00011788,2]
[426474827,1782435032000,-790.97782924,0.00011788,2]
[426474832,1782435032000,-790.97782924,0.00011788,2]
[426474829,1782435032000,-790.97782924,0.00011788,2]
[426474830,1782435032000,-790.97782924,0.00011788,2]
[426474831,1782435032000,-790.97782924,0.00011788,2]
[426474834,1782435032000,-790.97782924,0.00011788,2]
[426474836,1782435032000,-790.97782924,0.00011788,2]
[426474795,1782435032000,-500.0,0.00011779,2]
[426474833,1782435032000,-790.97782924,0.00011788,2]
[426474820,1782435032000,-790.97782924,0.00011788,2]
[426474828,1782435032000,-790.97782924,0.00011788,2]
[426474814,1782435032000,-790.97782924,0.00011788,2]
[426474818,1782435032000,-790.97782924,0.00011788,2]
[426474794,1782435032000,-500.0,0.00011779,2]
[426474792,1782435032000,-500.0,0.00011779,2]
[426474791,1782435032000,-500.0,0.00011779,2]
[426474789,1782435032000,-500.0,0.00011779,2]
[426474799,1782435032000,-500.0,0.00011779,2]
[426474798,1782435032000,-500.0,0.00011779,2]
[426474804,1782435032000,-500.0,0.00011788,2]
[426474800,1782435032000,-500.0,0.00011779,2]
[426474806,1782435032000,-9310.8496615,0.00011788,2]
[426474790,1782435032000,-360.0,0.00011779,2]
[426474809,1782435032000,-184.93939721,0.00011788,2]
[426474811,1782435032000,-500.0,0.00011788,2]
[426474802,1782435032000,-340.05899988,0.00011779,2]
[426474812,1782435032000,-500.0,0.00011788,2]
[426474810,1782435032000,-500.0,0.00011788,2]
[426474807,1782435032000,-500.0,0.00011788,2]
[426474793,1782435032000,-500.0,0.00011779,2]
[426474801,1782435032000,-573.35020874,0.00011779,2]
[426474808,1782435032000,-500.0,0.00011788,2]
[426474803,1782435032000,-1000.0,0.00011788,2]
[426474805,1782435032000,-949.2775159,0.00011788,2]
[426474874,1782435033000,-784.8933844,0.00011788,2]
[426474875,1782435033000,-500.0,0.00011788,2]
[426474881,1782435033000,-784.8933844,0.00011788,2]
[426474880,1782435033000,-181.78515407,0.00011788,2]
[426474876,1782435033000,-784.8933844,0.00011788,2]
[426474873,1782435033000,-784.8933844,0.00011788,2]
[426474878,1782435033000,-784.8933844,0.00011788,2]
[426474877,1782435033000,-500.0,0.00011788,2]
[426474884,1782435033000,-784.8933844,0.00011788,2]
[426474890,1782435033000,-500.0,0.00011788,2]
[426474894,1782435033000,-784.8933844,0.00011788,2]
[426474879,1782435033000,-784.8933844,0.00011788,2]
[426474888,1782435033000,-784.8933844,0.00011788,2]
[426474865,1782435033000,-784.8933844,0.00011788,2]
[426474883,1782435033000,-784.8933844,0.00011788,2]
[426474882,1782435033000,-784.8933844,0.00011788,2]
[426474872,1782435033000,-500.0,0.00011788,2]
[426474869,1782435033000,-784.8933844,0.00011788,2]
[426474868,1782435033000,-784.8933844,0.00011788,2]
[426474866,1782435033000,-500.0,0.00011788,2]
[426474862,1782435033000,-427.33726426,0.00011788,2]
[426474867,1782435033000,-784.8933844,0.00011788,2]
[426474864,1782435033000,-784.8933844,0.00011788,2]
[426474870,1782435033000,-500.0,0.00011788,2]
[426474861,1782435033000,-790.97782924,0.00011788,2]
[426474863,1782435033000,-300.0,0.00011788,2]
[426474891,1782435033000,-784.8933844,0.00011788,2]
[426474871,1782435033000,-784.8933844,0.00011788,2]
[426474887,1782435033000,-784.8933844,0.00011788,2]
[426474905,1782435033000,-784.8933844,0.00011788,2]
[426474885,1782435033000,-784.8933844,0.00011788,2]
[426474920,1782435033000,-788.55261733,0.00011789,2]
[426474919,1782435033000,-130954.50949168,0.00011789,2]
[426474918,1782435033000,-391.01871303,0.00011788,2]
[426474913,1782435033000,-797.9749408,0.00011788,2]
[426474917,1782435033000,-341.47357117,0.00011788,2]
[426474911,1782435033000,-797.9749408,0.00011788,2]
[426474908,1782435033000,-516.88656888,0.00011788,2]
[426474889,1782435033000,-784.8933844,0.00011788,2]
[426474915,1782435033000,-320.85554344,0.00011788,2]
[426474912,1782435033000,-797.9749408,0.00011788,2]
[426474907,1782435033000,-784.8933844,0.00011788,2]
[426474914,1782435033000,-797.9749408,0.00011788,2]
[426474910,1782435033000,-797.9749408,0.00011788,2]
[426474916,1782435033000,-314.24846474,0.00011788,2]
[426474909,1782435033000,-204.69164993,0.00011788,2]
[426474904,1782435033000,-784.8933844,0.00011788,2]
[426474899,1782435033000,-500.0,0.00011788,2]
[426474892,1782435033000,-784.8933844,0.00011788,2]
[426474886,1782435033000,-784.8933844,0.00011788,2]
[426474895,1782435033000,-784.8933844,0.00011788,2]
[426474893,1782435033000,-784.8933844,0.00011788,2]
[426474897,1782435033000,-739.93650625,0.00011788,2]
[426474903,1782435033000,-784.8933844,0.00011788,2]
[426474901,1782435033000,-784.8933844,0.00011788,2]
[426474902,1782435033000,-784.8933844,0.00011788,2]
[426474898,1782435033000,-784.8933844,0.00011788,2]
[426474896,1782435033000,-44.95687815,0.00011788,2]
[426474900,1782435033000,-784.8933844,0.00011788,2]
[426474906,1782435033000,-784.8933844,0.00011788,2]
[426474923,1782435038000,-152.0,0.00011788,2]
[426474921,1782435038000,-356.39747628,0.00010851,2]
[426474922,1782435038000,-660.19252372,0.00010851,2]
[426474927,1782435038000,-3634.20934834,0.00011789,2]
[426474925,1782435038000,-126.61498147,0.00011788,2]
[426474926,1782435038000,-237.11645088,0.00011788,2]
[426474924,1782435038000,-25.38501853,0.00011788,2]
[426475300,1782435041000,-0.65581127,0.00011789,2]
[426475522,1782435043000,-781.79316251,0.00011789,2]
[426475523,1782435043000,-322.57848267,0.00011789,2]
[426475520,1782435043000,-5076.58641003,0.00011789,2]
[426475521,1782435043000,-4839.34083007,0.00011789,2]
[426475525,1782435046000,-631.6,0.00011789,2]
[426475529,1782435046000,-10037.38538355,0.00011789,2]
[426475531,1782435046000,-8153.94954005,0.00011789,2]
[426475530,1782435046000,-8551.52658401,0.00011789,2]
[426475532,1782435046000,-1517.73969443,0.00011789,2]
[426475533,1782435101000,223.17450604,0.00010717,7]
[426475534,1782435128000,1202.083419,7.945e-05,2]
[426475535,1782435188000,535.66,0.00037255,120]
[426475537,1782435344000,529.59094639,0.00030136,120]
[426475536,1782435344000,500.0,0.00030136,120]
[426475539,1782435387000,1656.0,0.00010609,2]
[426475540,1782435424000,506.0,0.00037255,120]
[426475542,1782435470000,200.0,0.00010749,7]
[426475552,1782435595000,2104.64505613,9.809e-05,2]
[426475557,1782435775000,1104.54,9.978e-05,2]
[426475560,1782435805000,8942.92905537,0.00037254,120]
[426475561,1782435833000,1233.28913811,0.00037254,120]
[426475562,1782435839000,779.14,9.944e-05,2]
[426475563,1782435878000,200.0,9.934e-05,2]
[426475564,1782435912000,1183.70918002,9.458e-05,2]
[426475571,1782436024000,9129.96,9.851e-05,2]
[426475572,1782436030000,413.82,9.851e-05,2]
[426475573,1782436070000,200.0,9.606e-05,2]
[426475576,1782436145000,-2584.59822582,0.00010019,2]
[426475577,1782436154000,254.10929592,0.00037255,120]
[426475578,1782436156000,500.0,9.853e-05,2]
[426475583,1782436192000,-1324.08,0.00010027,2]
[426475580,1782436192000,-1423.53177418,0.00010019,2]
[426475581,1782436192000,-150.0,0.00010021,2]
[426475582,1782436192000,-281.66494905,0.00010023,2]
[426475586,1782436192000,-2205.02473759,0.00010202,2]
[426475585,1782436192000,-736.66934219,0.00010202,2]
[426475584,1782436192000,-150.0,0.00010118,2]
[426475589,1782436192000,-150.0,0.00010219,2]
[426475590,1782436192000,-166.57,0.00010233,2]
[426475588,1782436192000,-166.86983135,0.00010202,2]
[426475591,1782436192000,-171.89532978,0.00010241,2]
[426475592,1782436213000,310.57882856,9.226e-05,2]
[426475647,1782436233000,-1000.0,0.00010486,2]
[426475644,1782436233000,-1000.0,0.00010486,2]
[426475648,1782436233000,-1000.0,0.00010486,2]
[426475650,1782436233000,-299.99,0.00010486,2]
[426475651,1782436233000,-3758.5,0.00010486,2]
[426475653,1782436233000,-9999.99,0.00010486,2]
[426475659,1782436233000,-1324.08,0.00010529,2]
[426475655,1782436233000,-436.54,0.00010486,2]
[426475656,1782436233000,-1494.66,0.00010486,2]
[426475658,1782436233000,-9999.99,0.00010486,2]
[426475657,1782436233000,-4999.99,0.00010486,2]
[426475645,1782436233000,-1000.0,0.00010486,2]
[426475664,1782436233000,-151.0,0.00010897,2]
[426475660,1782436233000,-4119.67,0.00010609,2]
[426475662,1782436233000,-166.57,0.00010655,2]
[426475663,1782436233000,-1324.08,0.00010779,2]
[426475661,1782436233000,-170.98,0.00010609,2]
[426475666,1782436233000,-152.0,0.00010897,2]
[426475676,1782436233000,-152.0,0.00010897,2]
[426475654,1782436233000,-9999.99,0.00010486,2]
[426475646,1782436233000,-1000.0,0.00010486,2]
[426475629,1782436233000,-1324.08,0.00010278,2]
[426475643,1782436233000,-1000.0,0.00010486,2]
[426475624,1782436233000,-117.37467022,0.00010241,2]
[426475625,1782436233000,-250.0,0.00010243,2]
[426475626,1782436233000,-193.0,0.00010245,2]
[426475627,1782436233000,-947.38,0.00010249,2]
[426475667,1782436233000,-299.0,0.00010897,2]
[426475640,1782436233000,-1288.15,0.00010486,2]
[426475635,1782436233000,-3876.59701144,0.00010475,2]
[426475636,1782436233000,-45685.63298856,0.00010475,2]
[426475638,1782436233000,-8271.56,0.00010475,2]
[426475649,1782436233000,-1000.0,0.00010486,2]
[426475631,1782436233000,-152.4,0.00010385,2]
[426475630,1782436233000,-577.23,0.00010346,2]
[426475633,1782436233000,-999.99,0.00010475,2]
[426475639,1782436233000,-150.0,0.00010485,2]
[426475634,1782436233000,-9999.99,0.00010475,2]
[426475632,1782436233000,-9999.99,0.00010475,2]
[426475637,1782436233000,-1200.29,0.00010475,2]
[426475652,1782436233000,-499.99,0.00010486,2]
[426475641,1782436233000,-1564.24,0.00010486,2]
[426475642,1782436233000,-1000.0,0.00010486,2]
[426475628,1782436233000,-2490.85,0.00010258,2]
[426475668,1782436233000,-151.0,0.00010897,2]
[426475665,1782436233000,-153.0,0.00010897,2]
[426475670,1782436233000,-151.0,0.00010897,2]
[426475695,1782436233000,-4496.61405641,0.00011181,2]
[426475696,1782436233000,-500.0,0.00011185,2]
[426475697,1782436233000,-1000.0,0.00011221,2]
[426475698,1782436233000,-1104.54,0.00011225,2]
[426475699,1782436233000,-193.0,0.00011265,2]
[426475703,1782436233000,-500.0,0.0001128,2]
[426475704,1782436233000,-500.0,0.0001128,2]
[426475702,1782436233000,-25401.41286857,0.00011279,2]
[426475701,1782436233000,-250.0,0.00011265,2]
[426475712,1782436233000,-500.0,0.0001128,2]
[426475711,1782436233000,-500.0,0.0001128,2]
[426475706,1782436233000,-500.0,0.0001128,2]
[426475708,1782436233000,-500.0,0.0001128,2]
[426475710,1782436233000,-500.0,0.0001128,2]
[426475709,1782436233000,-500.0,0.0001128,2]
[426475705,1782436233000,-500.0,0.0001128,2]
[426475707,1782436233000,-500.0,0.0001128,2]
[426475672,1782436233000,-151.0,0.00010897,2]
[426475715,1782436233000,-500.0,0.0001128,2]
[426475716,1782436233000,-554.69857002,0.0001128,2]
[426475714,1782436233000,-500.0,0.0001128,2]
[426475693,1782436233000,-166.66,0.00011178,2]
[426475700,1782436233000,-300.0,0.00011265,2]
[426475713,1782436233000,-500.0,0.0001128,2]
[426475692,1782436233000,-166.57,0.00011077,2]
[426475669,1782436233000,-297.0,0.00010897,2]
[426475671,1782436233000,-151.0,0.00010897,2]
[426475673,1782436233000,-150.0,0.00010897,2]
[426475675,1782436233000,-150.0,0.00010897,2]
[426475674,1782436233000,-150.0,0.00010897,2]
[426475677,1782436233000,-151.0,0.00010897,2]
[426475684,1782436233000,-150.0,0.00010959,2]
[426475683,1782436233000,-500.0,0.00010932,2]
[426475681,1782436233000,-500.0,0.00010911,2]
[426475679,1782436233000,-151.0,0.00010897,2]
[426475682,1782436233000,-153.0,0.00010924,2]
[426475690,1782436233000,-1324.08,0.0001103,2]
[426475680,1782436233000,-152.0,0.00010897,2]
[426475691,1782436233000,-166.66,0.00011068,2]
[426475689,1782436233000,-250.0,0.00011021,2]
[426475688,1782436233000,-500.0,0.00011021,2]
[426475694,1782436233000,-12146.9260525,0.00011181,2]
[426475678,1782436233000,-151.0,0.00010897,2]
[426475685,1782436233000,-300.0,0.00010959,2]
[426475686,1782436233000,-166.66,0.00010959,2]
[426475687,1782436233000,-500.0,0.00011021,2]
[426475753,1782436234000,-500.0,0.0001128,2]
[426475733,1782436234000,-500.0,0.0001128,2]
[426475736,1782436234000,-500.0,0.0001128,2]
[426475741,1782436234000,-500.0,0.0001128,2]
[426475743,1782436234000,-500.0,0.0001128,2]
[426475752,1782436234000,-500.0,0.0001128,2]
[426475742,1782436234000,-500.0,0.0001128,2]
[426475734,1782436234000,-500.0,0.0001128,2]
[426475754,1782436234000,-500.0,0.0001128,2]
[426475744,1782436234000,-500.0,0.0001128,2]
[426475751,1782436234000,-500.0,0.0001128,2]
[426475745,1782436234000,-500.0,0.0001128,2]
[426475746,1782436234000,-500.0,0.0001128,2]
[426475747,1782436234000,-500.0,0.0001128,2]
[426475748,1782436234000,-500.0,0.0001128,2]
[426475749,1782436234000,-500.0,0.0001128,2]
[426475737,1782436234000,-500.0,0.0001128,2]
[426475750,1782436234000,-500.0,0.0001128,2]
[426475735,1782436234000,-500.0,0.0001128,2]
[426475721,1782436234000,-500.0,0.0001128,2]
[426475740,1782436234000,-500.0,0.0001128,2]
[426475755,1782436234000,-500.0,0.0001128,2]
[426475724,1782436234000,-500.0,0.0001128,2]
[426475726,1782436234000,-500.0,0.0001128,2]
[426475725,1782436234000,-500.0,0.0001128,2]
[426475719,1782436234000,-500.0,0.0001128,2]
[426475718,1782436234000,-500.0,0.0001128,2]
[426475717,1782436234000,-500.0,0.0001128,2]
[426475720,1782436234000,-500.0,0.0001128,2]
[426475723,1782436234000,-500.0,0.0001128,2]
[426475722,1782436234000,-500.0,0.0001128,2]
[426475727,1782436234000,-500.0,0.0001128,2]
[426475731,1782436234000,-500.0,0.0001128,2]
[426475730,1782436234000,-500.0,0.0001128,2]
[426475732,1782436234000,-500.0,0.0001128,2]
[426475729,1782436234000,-500.0,0.0001128,2]
[426475738,1782436234000,-500.0,0.0001128,2]
[426475728,1782436234000,-500.0,0.0001128,2]
[426475739,1782436234000,-500.0,0.0001128,2]
[426475756,1782436234000,-500.0,0.0001128,2]
[426475795,1782436234000,-500.0,0.0001128,2]
[426475758,1782436234000,-500.0,0.0001128,2]
[426475780,1782436234000,-500.0,0.0001128,2]
[426475782,1782436234000,-500.0,0.0001128,2]
[426475781,1782436234000,-500.0,0.0001128,2]
[426475783,1782436234000,-500.0,0.0001128,2]
[426475785,1782436234000,-415.83827308,0.0001128,2]
[426475784,1782436234000,-500.0,0.0001128,2]
[426475787,1782436234000,-500.0,0.0001128,2]
[426475786,1782436234000,-84.16172692,0.0001128,2]
[426475790,1782436234000,-605.53199236,0.0001128,2]
[426475793,1782436234000,-500.0,0.0001128,2]
[426475788,1782436234000,-500.0,0.0001128,2]
[426475792,1782436234000,-645.16848325,0.0001128,2]
[426475789,1782436234000,-500.0,0.0001128,2]
[426475791,1782436234000,-500.0,0.0001128,2]
[426475797,1782436234000,-500.0,0.0001128,2]
[426475794,1782436234000,-500.0,0.0001128,2]
[426475796,1782436234000,-500.0,0.0001128,2]
[426475778,1782436234000,-293.43187539,0.0001128,2]
[426475779,1782436234000,-500.0,0.0001128,2]
[426475757,1782436234000,-500.0,0.0001128,2]
[426475777,1782436234000,-206.56812461,0.0001128,2]
[426475776,1782436234000,-500.0,0.0001128,2]
[426475765,1782436234000,-500.0,0.0001128,2]
[426475761,1782436234000,-500.0,0.0001128,2]
[426475763,1782436234000,-500.0,0.0001128,2]
[426475760,1782436234000,-500.0,0.0001128,2]
[426475764,1782436234000,-500.0,0.0001128,2]
[426475762,1782436234000,-500.0,0.0001128,2]
[426475767,1782436234000,-500.0,0.0001128,2]
[426475759,1782436234000,-500.0,0.0001128,2]
[426475768,1782436234000,-500.0,0.0001128,2]
[426475766,1782436234000,-500.0,0.0001128,2]
[426475775,1782436234000,-500.0,0.0001128,2]
[426475773,1782436234000,-500.0,0.0001128,2]
[426475774,1782436234000,-500.0,0.0001128,2]
[426475771,1782436234000,-500.0,0.0001128,2]
[426475772,1782436234000,-500.0,0.0001128,2]
[426475770,1782436234000,-500.0,0.0001128,2]
[426475769,1782436234000,-500.0,0.0001128,2]
[426475823,1782436235000,-500.0,0.00011505,2]
[426475821,1782436235000,-500.0,0.00011505,2]
[426475820,1782436235000,-500.0,0.00011505,2]
[426475819,1782436235000,-500.0,0.00011505,2]
[426475830,1782436235000,-430.99473728,0.00011575,2]
[426475824,1782436235000,-500.0,0.00011505,2]
[426475822,1782436235000,-500.0,0.00011505,2]
[426475828,1782436235000,-1000.0,0.00011558,2]
[426475839,1782436235000,-226.70599992,0.00011665,2]
[426475825,1782436235000,-262.85348933,0.00011505,2]
[426475827,1782436235000,-255.0,0.00011513,2]
[426475826,1782436235000,-166.66,0.00011507,2]
[426475832,1782436235000,-610.843503,0.00011575,2]
[426475842,1782436235000,-500.0,0.00011674,2]
[426475833,1782436235000,-610.843503,0.00011575,2]
[426475831,1782436235000,-610.843503,0.00011575,2]
[426475817,1782436235000,-151.0,0.00011505,2]
[426475829,1782436235000,-244.3825185,0.00011575,2]
[426475815,1782436235000,-150.0,0.00011505,2]
[426475812,1782436235000,-166.57,0.000115,2]
[426475814,1782436235000,-150.0,0.00011505,2]
[426475838,1782436235000,-448.84642868,0.00011584,2]
[426475798,1782436235000,-258.00236444,0.0001128,2]
[426475799,1782436235000,-500.0,0.0001128,2]
[426475800,1782436235000,-500.0,0.0001128,2]
[426475801,1782436235000,-500.0,0.0001128,2]
[426475806,1782436235000,-152.0,0.00011281,2]
[426475804,1782436235000,-1585.37,0.00011281,2]
[426475802,1782436235000,-500.0,0.0001128,2]
[426475805,1782436235000,-150.99,0.00011281,2]
[426475803,1782436235000,-500.0,0.0001128,2]
[426475807,1782436235000,-248.0,0.00011281,2]
[426475809,1782436235000,-16545.41216163,0.00011358,2]
[426475808,1782436235000,-166.66,0.00011288,2]
[426475818,1782436235000,-500.0,0.00011505,2]
[426475813,1782436235000,-3109.28155768,0.000115,2]
[426475810,1782436235000,-166.66,0.00011397,2]
[426475816,1782436235000,-200.0,0.00011505,2]
[426475811,1782436235000,-500.0,0.00011459,2]
[426475834,1782436235000,-610.843503,0.00011575,2]
[426475845,1782436235000,-500.0,0.00011674,2]
[426475836,1782436235000,-549.5846,0.00011575,2]
[426475856,1782436235000,-500.0,0.00011674,2]
[426475862,1782436235000,-327.48623176,0.00011674,2]
[426475864,1782436235000,-1957.0,0.00011675,5]
[426475835,1782436235000,-151.0,0.00011575,2]
[426475866,1782436235000,-151.0,0.00011675,2]
[426475867,1782436235000,-188.443308,0.00011675,2]
[426475869,1782436235000,-610.843503,0.00011675,2]
[426475868,1782436235000,-610.843503,0.00011675,2]
[426475863,1782436235000,-300.0,0.00011674,2]
[426475870,1782436235000,-610.843503,0.00011675,2]
[426475872,1782436235000,-151.0,0.00011675,2]
[426475873,1782436235000,-19142.2915504,0.00011675,2]
[426475875,1782436235000,-1254.41808677,0.00011675,2]
[426475876,1782436235000,-2206.63792346,0.00011675,2]
[426475874,1782436235000,-92446.70697244,0.00011675,2]
[426475877,1782436235000,-535.48704977,0.00011675,2]
[426475878,1782436235000,-700.19088126,0.00011675,2]
[426475879,1782436235000,-496.2484482,0.00011675,2]
[426475871,1782436235000,-610.843503,0.00011675,2]
[426475859,1782436235000,-470.52643372,0.00011674,2]
[426475865,1782436235000,-151.0,0.00011675,2]
[426475860,1782436235000,-183.62646944,0.00011674,2]
[426475840,1782436235000,-332.15623026,0.00011674,2]
[426475837,1782436235000,-2000.0,0.00011575,2]
[426475841,1782436235000,-500.0,0.00011674,2]
[426475861,1782436235000,-217.3373642,0.00011674,2]
[426475844,1782436235000,-500.0,0.00011674,2]
[426475843,1782436235000,-500.0,0.00011674,2]
[426475846,1782436235000,-500.0,0.00011674,2]
[426475848,1782436235000,-517.43032315,0.00011674,2]
[426475849,1782436235000,-150.0,0.00011674,2]
[426475854,1782436235000,-500.0,0.00011674,2]
[426475851,1782436235000,-500.0,0.00011674,2]
[426475847,1782436235000,-500.0,0.00011674,2]
[426475858,1782436235000,-150.0,0.00011674,2]